fUSD/lending_fUSD_20260508
["ID","MTS","AMOUNT","RATE_DAILY","PERIOD"]
[421824519,1778189904000,-2653.52410293,0.00042236,120]
[421824515,1778189904000,-1000.0,0.00042235,120]
[421824517,1778189904000,-2653.52410293,0.00042236,120]
[421824514,1778189904000,-1000.0,0.00042235,120]
[421824516,1778189904000,-962.49068051,0.00042235,120]
[421824511,1778189904000,-1560.0,0.00042192,120]
[421824512,1778189904000,-1560.0,0.00042192,120]
[421824518,1778189904000,-2653.52410293,0.00042236,120]
[421824513,1778189904000,-160.0,0.000422,80]
[421824509,1778189904000,-2450.0,0.000421,30]
[421824508,1778189904000,-218.96,0.00042,30]
[421824507,1778189904000,-224.48,0.00042,30]
[421824505,1778189904000,-160.0,0.00042,79]
[421824506,1778189904000,-160.0,0.00042,79]
[421824504,1778189904000,-277.955564,0.00042,30]
[421824510,1778189904000,-152.22,0.0004211,120]
[421824503,1778189904000,-151.0,0.00042,30]
[421824533,1778189905000,-161.0,0.0004225,120]
[421824532,1778189905000,-1928.60676563,0.00042249,120]
[421824535,1778189905000,-700.0,0.00042291,120]
[421824537,1778189905000,-151.0,0.000423,30]
[421824539,1778189905000,-527.9974148,0.00042316,120]
[421824538,1778189905000,-187598.0,0.000423,60]
[421824534,1778189905000,-1255.22300747,0.00042282,120]
[421824536,1778189905000,-1006.0,0.000423,100]
[421824529,1778189905000,-169.20519531,0.00042236,120]
[421824521,1778189905000,-2653.52410293,0.00042236,120]
[421824531,1778189905000,-208.52961,0.00042236,30]
[421824528,1778189905000,-301.96192583,0.00042236,120]
[421824527,1778189905000,-1170.81408174,0.00042236,120]
[421824525,1778189905000,-2653.52410293,0.00042236,120]
[421824524,1778189905000,-2653.52410293,0.00042236,120]
[421824523,1778189905000,-2653.52410293,0.00042236,120]
[421824526,1778189905000,-1604.25958977,0.00042236,120]
[421824522,1778189905000,-2653.52410293,0.00042236,120]
[421824540,1778189905000,-211.53786075,0.00042316,120]
[421824530,1778189905000,-175.50569688,0.00042236,120]
[421824541,1778189905000,-472.15239481,0.00042316,120]
[421824543,1778189905000,-1259.44984575,0.00042316,120]
[421824544,1778189905000,-435.21699561,0.00042316,120]
[421824563,1778189905000,-185.0,0.00042347,120]
[421824560,1778189905000,-1142.5,0.00042347,120]
[421824561,1778189905000,-300.0,0.00042347,120]
[421824557,1778189905000,-520.32290642,0.00042337,120]
[421824558,1778189905000,-300.0,0.00042346,30]
[421824559,1778189905000,-206.02704091,0.00042346,30]
[421824555,1778189905000,-200.0,0.00042332,120]
[421824556,1778189905000,-510.27,0.00042332,120]
[421824553,1778189905000,-507.76,0.00042329,120]
[421824562,1778189905000,-300.0,0.00042347,120]
[421824552,1778189905000,-507.76,0.00042329,120]
[421824551,1778189905000,-507.76,0.00042329,120]
[421824550,1778189905000,-507.76,0.00042329,120]
[421824549,1778189905000,-153.0,0.0004232,120]
[421824548,1778189905000,-3228.19373227,0.00042317,120]
[421824547,1778189905000,-178.90821646,0.00042316,120]
[421824546,1778189905000,-216.39825844,0.00042316,120]
[421824545,1778189905000,-225.15160466,0.00042316,120]
[421824542,1778189905000,-392.06563707,0.00042316,120]
[421824554,1778189905000,-507.77,0.00042329,120]
[421824576,1778189906000,-500.0,0.00042363,120]
[421824578,1778189906000,-500.0,0.00042363,120]
[421824579,1778189906000,-500.0,0.00042363,120]
[421824582,1778189906000,-500.0,0.00042363,120]
[421824583,1778189906000,-500.0,0.00042363,120]
[421824580,1778189906000,-500.0,0.00042363,120]
[421824577,1778189906000,-500.0,0.00042363,120]
[421824581,1778189906000,-500.0,0.00042363,120]
[421824575,1778189906000,-500.0,0.00042363,120]
[421824570,1778189906000,-500.0,0.00042363,120]
[421824573,1778189906000,-500.0,0.00042363,120]
[421824571,1778189906000,-500.0,0.00042363,120]
[421824572,1778189906000,-500.0,0.00042363,120]
[421824568,1778189906000,-500.0,0.00042363,120]
[421824569,1778189906000,-500.0,0.00042363,120]
[421824566,1778189906000,-500.0,0.00042363,120]
[421824567,1778189906000,-500.0,0.00042363,120]
[421824565,1778189906000,-500.0,0.00042363,120]
[421824585,1778189906000,-500.0,0.00042363,120]
[421824574,1778189906000,-500.0,0.00042363,120]
[421824584,1778189906000,-500.0,0.00042363,120]
[421824564,1778189906000,-500.0,0.00042363,120]
[421824587,1778189906000,-500.0,0.00042363,120]
[421824586,1778189906000,-500.0,0.00042363,120]
[421824607,1778189906000,-156.47,0.00042438,120]
[421824605,1778189906000,-153.45,0.00042438,120]
[421824604,1778189906000,-153.45,0.00042438,120]
[421824606,1778189906000,-153.45,0.00042438,120]
[421824602,1778189906000,-8770.0,0.00042415,120]
[421824603,1778189906000,-153.45,0.00042438,120]
[421824600,1778189906000,-2000.0,0.00042409,120]
[421824601,1778189906000,-27230.0,0.00042415,120]
[421824599,1778189906000,-271.14,0.00042404,120]
[421824608,1778189906000,-156.47,0.00042438,120]
[421824595,1778189906000,-271.15,0.0004238,120]
[421824598,1778189906000,-496.62927825,0.000424,120]
[421824590,1778189906000,-500.0,0.00042363,120]
[421824589,1778189906000,-500.0,0.00042363,120]
[421824591,1778189906000,-500.0,0.00042363,120]
[421824588,1778189906000,-500.0,0.00042363,120]
[421824593,1778189906000,-961.0,0.00042363,120]
[421824596,1778189906000,-152.22,0.0004238,120]
[421824594,1778189906000,-243.24,0.00042379,120]
[421824597,1778189906000,-1000.0,0.000424,120]
[421824592,1778189906000,-500.0,0.00042363,120]
[421824621,1778189907000,-50000.0,0.00042489,63]
[421824627,1778189907000,-571.48,0.0004249,30]
[421824626,1778189907000,-151.0,0.0004249,30]
[421824625,1778189907000,-569.23,0.0004249,30]
[421824624,1778189907000,-478.87,0.0004249,30]
[421824623,1778189907000,-151.0,0.0004249,30]
[421824622,1778189907000,-183.75,0.0004249,30]
[421824620,1778189907000,-50000.0,0.00042489,62]
[421824619,1778189907000,-50000.0,0.00042489,61]
[421824615,1778189907000,-1560.0,0.00042466,120]
[421824618,1778189907000,-50000.0,0.00042489,60]
[421824617,1778189907000,-271.15,0.0004248,120]
[421824613,1778189907000,-1000.0,0.00042465,120]
[421824614,1778189907000,-435.76446381,0.00042465,120]
[421824611,1778189907000,-1000.0,0.00042465,120]
[421824612,1778189907000,-1000.0,0.00042465,120]
[421824609,1778189907000,-304.23060887,0.00042447,120]
[421824610,1778189907000,-279.48,0.0004245,120]
[421824616,1778189907000,-225.0,0.00042466,90]
[421824629,1778189907000,-639.56,0.0004249,30]
[421824628,1778189907000,-151.0,0.0004249,30]
[421824632,1778189907000,-393.39,0.0004249,30]
[421824630,1778189907000,-156.04,0.0004249,30]
[421824649,1778189907000,-478.87,0.0004249,30]
[421824648,1778189907000,-569.23,0.0004249,30]
[421824645,1778189907000,-393.39,0.0004249,30]
[421824647,1778189907000,-639.56,0.0004249,30]
[421824644,1778189907000,-478.87,0.0004249,30]
[421824643,1778189907000,-569.23,0.0004249,30]
[421824642,1778189907000,-639.56,0.0004249,30]
[421824640,1778189907000,-571.48,0.0004249,30]
[421824646,1778189907000,-571.48,0.0004249,30]
[421824638,1778189907000,-183.75,0.0004249,30]
[421824641,1778189907000,-155.84,0.0004249,30]
[421824634,1778189907000,-571.48,0.0004249,30]
[421824631,1778189907000,-151.0,0.0004249,30]
[421824635,1778189907000,-151.0,0.0004249,30]
[421824633,1778189907000,-639.56,0.0004249,30]
[421824636,1778189907000,-569.23,0.0004249,30]
[421824639,1778189907000,-393.39,0.0004249,30]
[421824637,1778189907000,-478.87,0.0004249,30]
[421824662,1778189908000,-571.48,0.0004249,30]
[421824668,1778189908000,-571.23,0.0004249,30]
[421824666,1778189908000,-478.87,0.0004249,30]
[421824667,1778189908000,-639.56,0.0004249,30]
[421824665,1778189908000,-183.75,0.0004249,30]
[421824664,1778189908000,-569.23,0.0004249,30]
[421824663,1778189908000,-393.39,0.0004249,30]
[421824661,1778189908000,-569.23,0.0004249,30]
[421824659,1778189908000,-571.48,0.0004249,30]
[421824669,1778189908000,-393.39,0.0004249,30]
[421824657,1778189908000,-183.75,0.0004249,30]
[421824658,1778189908000,-478.87,0.0004249,30]
[421824656,1778189908000,-183.75,0.0004249,30]
[421824655,1778189908000,-393.39,0.0004249,30]
[421824654,1778189908000,-569.23,0.0004249,30]
[421824653,1778189908000,-639.56,0.0004249,30]
[421824651,1778189908000,-183.75,0.0004249,30]
[421824652,1778189908000,-571.48,0.0004249,30]
[421824660,1778189908000,-393.39,0.0004249,30]
[421824671,1778189908000,-183.75,0.0004249,30]
[421824650,1778189908000,-393.39,0.0004249,30]
[421824672,1778189908000,-639.56,0.0004249,30]
[421824690,1778189908000,-151.0,0.0004249,30]
[421824691,1778189908000,-151.0,0.0004249,30]
[421824687,1778189908000,-151.0,0.0004249,30]
[421824689,1778189908000,-151.0,0.0004249,30]
[421824688,1778189908000,-151.0,0.0004249,30]
[421824686,1778189908000,-151.0,0.0004249,30]
[421824685,1778189908000,-151.0,0.0004249,30]
[421824684,1778189908000,-151.0,0.0004249,30]
[421824682,1778189908000,-151.0,0.0004249,30]
[421824670,1778189908000,-584.99,0.0004249,30]
[421824680,1778189908000,-639.06,0.0004249,30]
[421824681,1778189908000,-387.67,0.0004249,30]
[421824679,1778189908000,-477.27,0.0004249,30]
[421824677,1778189908000,-639.56,0.0004249,30]
[421824678,1778189908000,-198.65,0.0004249,30]
[421824676,1778189908000,-478.87,0.0004249,30]
[421824675,1778189908000,-183.75,0.0004249,30]
[421824673,1778189908000,-478.87,0.0004249,30]
[421824674,1778189908000,-393.12,0.0004249,30]
[421824683,1778189908000,-151.0,0.0004249,30]
[421824706,1778189909000,-569.23,0.0004249,30]
[421824703,1778189909000,-183.75,0.0004249,30]
[421824704,1778189909000,-478.87,0.0004249,30]
[421824711,1778189909000,-393.39,0.0004249,30]
[421824707,1778189909000,-478.87,0.0004249,30]
[421824709,1778189909000,-569.23,0.0004249,30]
[421824705,1778189909000,-569.23,0.0004249,30]
[421824708,1778189909000,-393.39,0.0004249,30]
[421824702,1778189909000,-478.87,0.0004249,30]
[421824697,1778189909000,-183.75,0.0004249,30]
[421824699,1778189909000,-183.75,0.0004249,30]
[421824700,1778189909000,-478.87,0.0004249,30]
[421824698,1778189909000,-478.87,0.0004249,30]
[421824695,1778189909000,-151.0,0.0004249,30]
[421824696,1778189909000,-151.0,0.0004249,30]
[421824694,1778189909000,-152.35,0.0004249,30]
[421824692,1778189909000,-151.0,0.0004249,30]
[421824710,1778189909000,-183.75,0.0004249,30]
[421824701,1778189909000,-183.75,0.0004249,30]
[421824693,1778189909000,-151.0,0.0004249,30]
[421824713,1778189909000,-393.39,0.0004249,30]
[421824712,1778189909000,-569.23,0.0004249,30]
[421824714,1778189909000,-569.23,0.0004249,30]
[421824734,1778189909000,-569.23,0.0004249,30]
[421824732,1778189909000,-183.75,0.0004249,30]
[421824730,1778189909000,-393.39,0.0004249,30]
[421824733,1778189909000,-393.39,0.0004249,30]
[421824731,1778189909000,-569.23,0.0004249,30]
[421824728,1778189909000,-569.23,0.0004249,30]
[421824729,1778189909000,-183.75,0.0004249,30]
[421824725,1778189909000,-183.75,0.0004249,30]
[421824726,1778189909000,-393.39,0.0004249,30]
[421824727,1778189909000,-478.87,0.0004249,30]
[421824722,1778189909000,-478.87,0.0004249,30]
[421824724,1778189909000,-569.23,0.0004249,30]
[421824716,1778189909000,-393.39,0.0004249,30]
[421824717,1778189909000,-478.87,0.0004249,30]
[421824719,1778189909000,-183.75,0.0004249,30]
[421824715,1778189909000,-478.87,0.0004249,30]
[421824721,1778189909000,-183.75,0.0004249,30]
[421824720,1778189909000,-478.87,0.0004249,30]
[421824723,1778189909000,-393.39,0.0004249,30]
[421824718,1778189909000,-393.39,0.0004249,30]
[421824748,1778189910000,-569.23,0.0004249,30]
[421824753,1778189910000,-569.23,0.0004249,30]
[421824751,1778189910000,-569.23,0.0004249,30]
[421824755,1778189910000,-569.23,0.0004249,30]
[421824752,1778189910000,-183.75,0.0004249,30]
[421824750,1778189910000,-393.39,0.0004249,30]
[421824749,1778189910000,-183.75,0.0004249,30]
[421824747,1778189910000,-393.39,0.0004249,30]
[421824746,1778189910000,-478.87,0.0004249,30]
[421824735,1778189910000,-393.39,0.0004249,30]
[421824744,1778189910000,-569.23,0.0004249,30]
[421824743,1778189910000,-478.87,0.0004249,30]
[421824742,1778189910000,-393.39,0.0004249,30]
[421824741,1778189910000,-183.75,0.0004249,30]
[421824739,1778189910000,-183.75,0.0004249,30]
[421824740,1778189910000,-478.87,0.0004249,30]
[421824738,1778189910000,-478.87,0.0004249,30]
[421824736,1778189910000,-569.23,0.0004249,30]
[421824737,1778189910000,-478.87,0.0004249,30]
[421824745,1778189910000,-183.75,0.0004249,30]
[421824754,1778189910000,-393.39,0.0004249,30]
[421824759,1778189910000,-183.75,0.0004249,30]
[421824756,1778189910000,-393.39,0.0004249,30]
[421824777,1778189910000,-569.23,0.0004249,30]
[421824776,1778189910000,-478.87,0.0004249,30]
[421824774,1778189910000,-393.39,0.0004249,30]
[421824775,1778189910000,-569.23,0.0004249,30]
[421824773,1778189910000,-569.23,0.0004249,30]
[421824772,1778189910000,-393.39,0.0004249,30]
[421824771,1778189910000,-183.75,0.0004249,30]
[421824769,1778189910000,-393.39,0.0004249,30]
[421824770,1778189910000,-569.23,0.0004249,30]
[421824778,1778189910000,-183.75,0.0004249,30]
[421824765,1778189910000,-478.87,0.0004249,30]
[421824768,1778189910000,-183.75,0.0004249,30]
[421824758,1778189910000,-478.87,0.0004249,30]
[421824760,1778189910000,-478.87,0.0004249,30]
[421824762,1778189910000,-478.87,0.0004249,30]
[421824757,1778189910000,-478.87,0.0004249,30]
[421824761,1778189910000,-183.75,0.0004249,30]
[421824763,1778189910000,-393.39,0.0004249,30]
[421824766,1778189910000,-393.39,0.0004249,30]
[421824767,1778189910000,-569.23,0.0004249,30]
[421824764,1778189910000,-183.75,0.0004249,30]
[421824796,1778189911000,-639.56,0.0004249,30]
[421824795,1778189911000,-639.56,0.0004249,30]
[421824793,1778189911000,-639.56,0.0004249,30]
[421824794,1778189911000,-569.19,0.0004249,30]
[421824792,1778189911000,-568.35,0.0004249,30]
[421824790,1778189911000,-569.23,0.0004249,30]
[421824791,1778189911000,-569.23,0.0004249,30]
[421824789,1778189911000,-569.23,0.0004249,30]
[421824784,1778189911000,-494.58,0.0004249,30]
[421824787,1778189911000,-569.23,0.0004249,30]
[421824785,1778189911000,-393.39,0.0004249,30]
[421824782,1778189911000,-393.39,0.0004249,30]
[421824783,1778189911000,-183.75,0.0004249,30]
[421824781,1778189911000,-478.87,0.0004249,30]
[421824780,1778189911000,-183.75,0.0004249,30]
[421824779,1778189911000,-478.87,0.0004249,30]
[421824798,1778189911000,-639.56,0.0004249,30]
[421824788,1778189911000,-416.25,0.0004249,30]
[421824786,1778189911000,-183.51,0.0004249,30]
[421824797,1778189911000,-639.56,0.0004249,30]
[421824800,1778189911000,-639.56,0.0004249,30]
[421824799,1778189911000,-639.56,0.0004249,30]
[421824817,1778189911000,-571.48,0.0004249,30]
[421824816,1778189911000,-639.56,0.0004249,30]
[421824814,1778189911000,-639.56,0.0004249,30]
[421824815,1778189911000,-571.48,0.0004249,30]
[421824812,1778189911000,-639.56,0.0004249,30]
[421824810,1778189911000,-639.56,0.0004249,30]
[421824811,1778189911000,-571.48,0.0004249,30]
[421824813,1778189911000,-571.48,0.0004249,30]
[421824808,1778189911000,-571.48,0.0004249,30]
[421824805,1778189911000,-571.48,0.0004249,30]
[421824807,1778189911000,-571.48,0.0004249,30]
[421824806,1778189911000,-639.56,0.0004249,30]
[421824804,1778189911000,-639.56,0.0004249,30]
[421824801,1778189911000,-571.48,0.0004249,30]
[421824803,1778189911000,-571.48,0.0004249,30]
[421824809,1778189911000,-639.56,0.0004249,30]
[421824802,1778189911000,-639.56,0.0004249,30]
[421824819,1778189912000,-639.56,0.0004249,30]
[421824827,1778189912000,-571.48,0.0004249,30]
[421824831,1778189912000,-639.56,0.0004249,30]
[421824836,1778189912000,-571.48,0.0004249,30]
[421824832,1778189912000,-571.48,0.0004249,30]
[421824834,1778189912000,-571.48,0.0004249,30]
[421824829,1778189912000,-639.56,0.0004249,30]
[421824833,1778189912000,-639.56,0.0004249,30]
[421824828,1778189912000,-571.48,0.0004249,30]
[421824821,1778189912000,-571.48,0.0004249,30]
[421824838,1778189912000,-571.48,0.0004249,30]
[421824826,1778189912000,-639.56,0.0004249,30]
[421824824,1778189912000,-639.56,0.0004249,30]
[421824822,1778189912000,-639.56,0.0004249,30]
[421824825,1778189912000,-571.48,0.0004249,30]
[421824823,1778189912000,-571.48,0.0004249,30]
[421824818,1778189912000,-571.48,0.0004249,30]
[421824820,1778189912000,-639.56,0.0004249,30]
[421824830,1778189912000,-639.56,0.0004249,30]
[421824837,1778189912000,-571.48,0.0004249,30]
[421824845,1778189912000,-639.56,0.0004249,30]
[421824835,1778189912000,-639.56,0.0004249,30]
[421824839,1778189912000,-639.56,0.0004249,30]
[421824859,1778189912000,-572.21,0.0004249,30]
[421824858,1778189912000,-571.48,0.0004249,30]
[421824856,1778189912000,-571.48,0.0004249,30]
[421824857,1778189912000,-571.48,0.0004249,30]
[421824854,1778189912000,-571.48,0.0004249,30]
[421824852,1778189912000,-571.48,0.0004249,30]
[421824855,1778189912000,-571.48,0.0004249,30]
[421824853,1778189912000,-571.48,0.0004249,30]
[421824849,1778189912000,-639.56,0.0004249,30]
[421824850,1778189912000,-674.03,0.0004249,30]
[421824851,1778189912000,-571.48,0.0004249,30]
[421824842,1778189912000,-571.48,0.0004249,30]
[421824840,1778189912000,-639.56,0.0004249,30]
[421824843,1778189912000,-639.56,0.0004249,30]
[421824841,1778189912000,-639.56,0.0004249,30]
[421824847,1778189912000,-571.48,0.0004249,30]
[421824846,1778189912000,-571.48,0.0004249,30]
[421824848,1778189912000,-571.48,0.0004249,30]
[421824844,1778189912000,-571.48,0.0004249,30]
[421824871,1778189913000,-500.0,0.000425,45]
[421824877,1778189913000,-224.48,0.000425,30]
[421824878,1778189913000,-20000.0,0.000425,90]
[421824876,1778189913000,-100000.0,0.000425,120]
[421824875,1778189913000,-5000.0,0.000425,60]
[421824874,1778189913000,-3279.83872045,0.000425,30]
[421824870,1778189913000,-500.0,0.000425,30]
[421824872,1778189913000,-500.0,0.000425,45]
[421824868,1778189913000,-1694.7109749,0.000425,120]
[421824865,1778189913000,-217.03483486,0.000425,120]
[421824867,1778189913000,-168.15026898,0.000425,120]
[421824866,1778189913000,-174.65263089,0.000425,90]
[421824864,1778189913000,-327.7724,0.000425,120]
[421824879,1778189913000,-271.14,0.00042504,120]
[421824862,1778189913000,-725.0,0.0004249,60]
[421824863,1778189913000,-736.85,0.000425,120]
[421824861,1778189913000,-408.0,0.0004249,60]
[421824860,1778189913000,-760.0,0.0004249,60]
[421824869,1778189913000,-180.78707821,0.000425,120]
[421824880,1778189913000,-520.8,0.00042546,120]
[421824873,1778189913000,-824.58,0.000425,120]
[421824883,1778189913000,-151.0,0.00042565,120]
[421824881,1778189913000,-1263.08,0.00042546,120]
[421824901,1778189913000,-1352.492882,0.00042565,120]
[421824900,1778189913000,-1352.492882,0.00042565,120]
[421824898,1778189913000,-151.0,0.00042565,120]
[421824897,1778189913000,-250.0,0.00042565,30]
[421824896,1778189913000,-151.0,0.00042565,120]
[421824894,1778189913000,-151.0,0.00042565,120]
[421824895,1778189913000,-196.008536,0.00042565,120]
[421824893,1778189913000,-151.0,0.00042565,120]
[421824891,1778189913000,-151.0,0.00042565,120]
[421824899,1778189913000,-1352.492882,0.00042565,120]
[421824887,1778189913000,-151.0,0.00042565,120]
[421824892,1778189913000,-151.0,0.00042565,120]
[421824882,1778189913000,-3839.41,0.00042546,120]
[421824885,1778189913000,-151.0,0.00042565,120]
[421824884,1778189913000,-151.0,0.00042565,120]
[421824888,1778189913000,-151.0,0.00042565,120]
[421824890,1778189913000,-151.0,0.00042565,120]
[421824889,1778189913000,-151.0,0.00042565,120]
[421824886,1778189913000,-152.25401,0.00042565,120]
[421824919,1778189914000,-254.88219049,0.0004257,120]
[421824915,1778189914000,-280.0,0.00042565,120]
[421824918,1778189914000,-216.24548883,0.00042568,120]
[421824917,1778189914000,-1000.0,0.00042565,120]
[421824916,1778189914000,-469.14022482,0.00042565,120]
[421824913,1778189914000,-155.0,0.00042565,120]
[421824914,1778189914000,-153.0,0.00042565,120]
[421824912,1778189914000,-156.0,0.00042565,120]
[421824911,1778189914000,-154.0,0.00042565,120]
[421824907,1778189914000,-155.0,0.00042565,120]
[421824909,1778189914000,-414.0,0.00042565,120]
[421824910,1778189914000,-157.0,0.00042565,120]
[421824906,1778189914000,-163.0,0.00042565,120]
[421824903,1778189914000,-220.0,0.00042565,30]
[421824905,1778189914000,-153.0,0.00042565,120]
[421824902,1778189914000,-1352.492882,0.00042565,120]
[421824904,1778189914000,-220.0,0.00042565,30]
[421824920,1778189914000,-991.88153611,0.00042579,30]
[421824908,1778189914000,-227.0,0.00042565,120]
[421824923,1778189914000,-10000.0,0.00042598,120]
[421824939,1778189914000,-1186.37655491,0.00042626,120]
[421824922,1778189914000,-271.23752102,0.0004258,120]
[421824943,1778189914000,-28388.82749604,0.00042675,120]
[421824921,1778189914000,-1317.04094989,0.00042579,30]
[421824941,1778189914000,-1186.37655491,0.00042626,120]
[421824940,1778189914000,-1186.37655491,0.00042626,120]
[421824937,1778189914000,-1186.37655491,0.00042626,120]
[421824936,1778189914000,-1186.37655491,0.00042626,120]
[421824938,1778189914000,-1186.37655491,0.00042626,120]
[421824934,1778189914000,-1186.37655491,0.00042626,120]
[421824935,1778189914000,-1186.37655491,0.00042626,120]
[421824942,1778189914000,-152.22,0.0004265,120]
[421824932,1778189914000,-1186.37655491,0.00042626,120]
[421824933,1778189914000,-1186.37655491,0.00042626,120]
[421824926,1778189914000,-271.14,0.00042604,120]
[421824927,1778189914000,-1107.60133573,0.00042614,30]
[421824924,1778189914000,-218.96,0.000426,30]
[421824925,1778189914000,-309.967638,0.00042602,90]
[421824928,1778189914000,-1107.60133573,0.00042614,30]
[421824930,1778189914000,-1186.37655491,0.00042626,120]
[421824931,1778189914000,-1186.37655491,0.00042626,120]
[421824929,1778189914000,-1186.37655492,0.00042626,120]
[421824963,1778189915000,-1186.37655491,0.00042763,120]
[421824954,1778189915000,-271.14,0.00042704,120]
[421824958,1778189915000,-1186.37655491,0.00042763,120]
[421824960,1778189915000,-1186.37655491,0.00042763,120]
[421824959,1778189915000,-1186.37655491,0.00042763,120]
[421824957,1778189915000,-1186.37655492,0.00042763,120]
[421824956,1778189915000,-1560.0,0.0004274,120]
[421824955,1778189915000,-1560.0,0.0004274,120]
[421824949,1778189915000,-152.0,0.00042684,120]
[421824951,1778189915000,-2500.0,0.000427,120]
[421824952,1778189915000,-625.0,0.000427,120]
[421824950,1778189915000,-2500.0,0.000427,120]
[421824946,1778189915000,-186.54,0.00042684,120]
[421824945,1778189915000,-5263.0,0.00042684,120]
[421824947,1778189915000,-200.0,0.00042684,120]
[421824944,1778189915000,-283.426826,0.00042683,82]
[421824961,1778189915000,-1186.37655491,0.00042763,120]
[421824953,1778189915000,-1000.0,0.000427,120]
[421824962,1778189915000,-1186.37655491,0.00042763,120]
[421824948,1778189915000,-151.00000001,0.00042684,60]
[421824967,1778189915000,-1186.37655491,0.00042763,120]
[421824983,1778189915000,-2000.0,0.00042875,120]
[421824982,1778189915000,-3034.73624073,0.00042875,120]
[421824981,1778189915000,-500.0,0.00042839,120]
[421824980,1778189915000,-700.0,0.00042839,120]
[421824979,1778189915000,-210.14392941,0.0004282,120]
[421824978,1778189915000,-178.21,0.00042816,60]
[421824977,1778189915000,-164.56,0.00042816,60]
[421824976,1778189915000,-164.56,0.00042816,60]
[421824975,1778189915000,-164.56,0.00042816,60]
[421824964,1778189915000,-1186.37655491,0.00042763,120]
[421824972,1778189915000,-376.68249604,0.000428,120]
[421824974,1778189915000,-271.14,0.00042804,120]
[421824969,1778189915000,-1186.37655491,0.00042763,120]
[421824968,1778189915000,-1186.37655491,0.00042763,120]
[421824970,1778189915000,-11311.57,0.000428,120]
[421824971,1778189915000,-3707.22418646,0.000428,120]
[421824965,1778189915000,-1186.37655491,0.00042763,120]
[421824966,1778189915000,-1186.37655491,0.00042763,120]
[421824973,1778189915000,-210.0,0.000428,120]
[421824993,1778189916000,-194.20450557,0.00043,120]
[421824996,1778189916000,-1000.0,0.00043,120]
[421824997,1778189916000,-1142.5,0.00043,120]
[421825000,1778189916000,-194.638644,0.00043,120]
[421824999,1778189916000,-1474.88800592,0.00043,120]
[421824995,1778189916000,-2500.0,0.00043,120]
[421824998,1778189916000,-3295.32713014,0.00043,120]
[421824994,1778189916000,-2500.0,0.00043,120]
[421824988,1778189916000,-941.28991651,0.00043,120]
[421824990,1778189916000,-3044.79003872,0.00043,120]
[421824989,1778189916000,-4140.84006567,0.00043,120]
[421824991,1778189916000,-200.0,0.00043,120]
[421824986,1778189916000,-271.14,0.00042904,120]
[421824985,1778189916000,-171035.14575357,0.000429,120]
[421824987,1778189916000,-152.22,0.0004292,120]
[421824984,1778189916000,-597.62135692,0.000429,120]
[421825001,1778189916000,-1034.87261566,0.00043,120]
[421824992,1778189916000,-1000.0,0.00043,120]
[421825003,1778189916000,-23082.8142726,0.00043,120]
[421825002,1778189916000,-1110.0,0.00043,120]